fUSD/lending_fUSD_20260601
["ID","MTS","AMOUNT","RATE_DAILY","PERIOD"]
[423693336,1780314643000,-929.0,0.0001528,2]
[423693332,1780314643000,-477.52,0.000152,14]
[423693334,1780314643000,-1357.0,0.0001528,2]
[423693342,1780314643000,-150.0,0.0001528,2]
[423693350,1780314643000,-891.02,0.000155,2]
[423693344,1780314643000,-150.0,0.0001528,2]
[423693352,1780314643000,-10000.0,0.00015867,2]
[423693353,1780314643000,-1289.5343442,0.00015876,2]
[423693351,1780314643000,-500.0,0.00015671,2]
[423693331,1780314643000,-500.0,0.00015148,2]
[423693346,1780314643000,-932.0,0.0001528,2]
[423693347,1780314643000,-277.450572,0.00015281,2]
[423693349,1780314643000,-500.0,0.00015422,2]
[423693348,1780314643000,-284.02560544,0.00015358,2]
[423693355,1780314643000,-169.459681,0.00015899,2]
[423693361,1780314643000,-215.65015035,0.00016,3]
[423693354,1780314643000,-160.557499,0.00015899,2]
[423693362,1780314643000,-10000.0,0.00016017,2]
[423693359,1780314643000,-160.0,0.00016,8]
[423693356,1780314643000,-10000.0,0.00015908,2]
[423693357,1780314643000,-10000.0,0.00015963,2]
[423693360,1780314643000,-300.0,0.00016,2]
[423693358,1780314643000,-200.0,0.00015972,2]
[423693345,1780314643000,-485.906,0.0001528,2]
[423693328,1780314643000,-417.81433435,0.00015,2]
[423693300,1780314643000,-589.83738051,0.0001489,2]
[423693340,1780314643000,-1273.0,0.0001528,2]
[423693329,1780314643000,-150.0,0.00015,2]
[423693304,1780314643000,-536.75,0.0001489,2]
[423693303,1780314643000,-536.75,0.0001489,2]
[423693301,1780314643000,-536.75,0.0001489,2]
[423693305,1780314643000,-536.907092,0.0001489,2]
[423693306,1780314643000,-25000.0,0.00014891,3]
[423693307,1780314643000,-25000.0,0.000149,3]
[423693313,1780314643000,-367.0,0.00014922,2]
[423693310,1780314643000,-2000.0,0.000149,2]
[423693312,1780314643000,-391.0,0.00014916,2]
[423693309,1780314643000,-33240.6068,0.000149,2]
[423693314,1780314643000,-391.0,0.00014925,2]
[423693317,1780314643000,-200.70074595,0.00014956,2]
[423693311,1780314643000,-353.0,0.00014906,2]
[423693316,1780314643000,-391.0,0.0001494,2]
[423693315,1780314643000,-203664.2510642,0.00014936,2]
[423693327,1780314643000,-150.0,0.00015,2]
[423693319,1780314643000,-374.0,0.00014968,2]
[423693324,1780314643000,-781.56714637,0.00014999,2]
[423693323,1780314643000,-300.0,0.00014999,2]
[423693326,1780314643000,-964.51664297,0.00015,7]
[423693337,1780314643000,-525.0,0.0001528,2]
[423693322,1780314643000,-392.0,0.00014985,2]
[423693325,1780314643000,-910968.45692991,0.00015,2]
[423693318,1780314643000,-379.0,0.00014962,2]
[423693321,1780314643000,-406.0,0.00014972,2]
[423693320,1780314643000,-391.0,0.00014968,2]
[423693401,1780314644000,-151.0,0.00018717,2]
[423693405,1780314644000,-151.0,0.00018717,2]
[423693404,1780314644000,-151.0,0.00018717,2]
[423693402,1780314644000,-151.0,0.00018717,2]
[423693403,1780314644000,-151.0,0.00018717,2]
[423693399,1780314644000,-450.0,0.00018605,7]
[423693397,1780314644000,-1346.3,0.0001841,2]
[423693398,1780314644000,-1050.0,0.00018605,2]
[423693396,1780314644000,-932.0,0.0001828,2]
[423693394,1780314644000,-150.0,0.0001828,2]
[423693407,1780314644000,-151.0,0.00018717,2]
[423693400,1780314644000,-4299.20821915,0.00018635,2]
[423693410,1780314644000,-151.0,0.00018717,2]
[423693419,1780314644000,-151.0,0.00018717,2]
[423693408,1780314644000,-693.39197629,0.00018717,2]
[423693411,1780314644000,-9552.16786547,0.00018717,2]
[423693406,1780314644000,-151.0,0.00018717,2]
[423693420,1780314644000,-151.0,0.00018717,2]
[423693421,1780314644000,-1428.38747117,0.00018717,2]
[423693412,1780314644000,-151.0,0.00018717,2]
[423693423,1780314644000,-151.0,0.00018717,2]
[423693424,1780314644000,-151.0,0.00018717,2]
[423693422,1780314644000,-151.0,0.00018717,2]
[423693413,1780314644000,-151.0,0.00018717,2]
[423693417,1780314644000,-151.0,0.00018717,2]
[423693395,1780314644000,-418.0,0.0001828,2]
[423693415,1780314644000,-151.0,0.00018717,2]
[423693409,1780314644000,-578.20924308,0.00018717,2]
[423693391,1780314644000,-525.0,0.0001828,2]
[423693378,1780314644000,-891.02,0.000175,2]
[423693393,1780314644000,-150.0,0.0001828,2]
[423693364,1780314644000,-526.60578546,0.0001619,2]
[423693416,1780314644000,-151.0,0.00018717,2]
[423693365,1780314644000,-309.0,0.000162,2]
[423693366,1780314644000,-424.0,0.00016219,2]
[423693367,1780314644000,-526.60578546,0.00016317,2]
[423693368,1780314644000,-526.60578546,0.00016359,2]
[423693369,1780314644000,-526.60578546,0.00016406,2]
[423693373,1780314644000,-861.92,0.000166,7]
[423693372,1780314644000,-526.60578546,0.0001646,2]
[423693371,1780314644000,-1346.3,0.00016438,2]
[423693370,1780314644000,-526.60578546,0.00016434,2]
[423693377,1780314644000,-3784.91071764,0.00017387,2]
[423693374,1780314644000,-526.60578546,0.00016771,2]
[423693375,1780314644000,-150.0,0.00016796,3]
[423693376,1780314644000,-526.60578546,0.00016841,2]
[423693380,1780314644000,-1253.0,0.00017808,5]
[423693379,1780314644000,-200.0,0.00017558,2]
[423693382,1780314644000,-173.39,0.00017877,2]
[423693381,1780314644000,-417.736987,0.00017861,2]
[423693383,1780314644000,-1170.74505945,0.00018,2]
[423693385,1780314644000,-1000.0,0.000181,2]
[423693388,1780314644000,-3551.0,0.0001828,2]
[423693387,1780314644000,-644.0,0.000181,2]
[423693384,1780314644000,-350.0,0.00018,2]
[423693386,1780314644000,-315.0,0.000181,2]
[423693390,1780314644000,-929.0,0.0001828,2]
[423693389,1780314644000,-1357.0,0.0001828,2]
[423693392,1780314644000,-1273.0,0.0001828,2]
[423693363,1780314644000,-4299.20821915,0.00016103,2]
[423693418,1780314644000,-151.0,0.00018717,2]
[423693425,1780314644000,-2080.17592889,0.00018717,2]
[423693458,1780314644000,-150.0,0.00019461,4]
[423693457,1780314644000,-150.0,0.0001941,4]
[423693459,1780314644000,-150.0,0.00019512,4]
[423693461,1780314644000,-1289.5343442,0.00019562,2]
[423693452,1780314644000,-997.16350561,0.00019266,2]
[423693460,1780314644000,-319.29120891,0.00019561,2]
[423693463,1780314644000,-150.0,0.00019614,4]
[423693465,1780314644000,-150.0,0.00019716,4]
[423693475,1780314644000,-1149.0,0.00019943,5]
[423693471,1780314644000,-150.0,0.00019818,4]
[423693464,1780314644000,-150.0,0.00019665,4]
[423693474,1780314644000,-1207.0,0.00019943,5]
[423693469,1780314644000,-1536.04360648,0.00019813,2]
[423693468,1780314644000,-10272.10520532,0.00019813,2]
[423693472,1780314644000,-150.0,0.00019869,4]
[423693466,1780314644000,-185.8,0.00019726,2]
[423693467,1780314644000,-150.0,0.00019767,4]
[423693470,1780314644000,-2236.95670847,0.00019813,2]
[423693473,1780314644000,-150.0,0.0001992,4]
[423693478,1780314644000,-5287.0021951,0.0002,2]
[423693476,1780314644000,-150.0,0.00019971,4]
[423693480,1780314644000,-1313.64007294,0.0002,2]
[423693479,1780314644000,-260.00122862,0.0002,2]
[423693481,1780314644000,-200.0,0.0002,2]
[423693482,1780314644000,-1060.36861277,0.0002,2]
[423693477,1780314644000,-300.0,0.00019999,2]
[423693414,1780314644000,-721.12765534,0.00018717,2]
[423693462,1780314644000,-150.0,0.00019563,4]
[423693455,1780314644000,-150.0,0.00019359,4]
[423693483,1780314644000,-2660.12973402,0.0002,2]
[423693456,1780314644000,-891.02,0.000194,2]
[423693454,1780314644000,-150.0,0.00019308,4]
[423693427,1780314644000,-151.0,0.00018717,2]
[423693426,1780314644000,-204.20298848,0.00018717,2]
[423693430,1780314644000,-151.0,0.00018717,2]
[423693429,1780314644000,-151.0,0.00018717,2]
[423693432,1780314644000,-1638.73,0.0001872,2]
[423693435,1780314644000,-300.0,0.00018801,2]
[423693436,1780314644000,-745.65223615,0.00018827,2]
[423693433,1780314644000,-1230.64,0.0001872,2]
[423693434,1780314644000,-719.04747942,0.00018772,2]
[423693431,1780314644000,-151.0,0.00018717,2]
[423693437,1780314644000,-773.24136889,0.00018882,2]
[423693446,1780314644000,-150.0,0.00019258,2]
[423693428,1780314644000,-151.0,0.00018717,2]
[423693438,1780314644000,-801.85129954,0.00018937,2]
[423693453,1780314644000,-192.36606792,0.00019271,2]
[423693451,1780314644000,-2157.14243826,0.00019265,2]
[423693444,1780314644000,-961.58486558,0.00019212,2]
[423693443,1780314644000,-927.27566594,0.00019156,2]
[423693439,1780314644000,-831.51979762,0.00018992,2]
[423693440,1780314644000,-2226.90229636,0.00019,2]
[423693445,1780314644000,-150.0,0.00019258,2]
[423693449,1780314644000,-9905.59807649,0.00019265,2]
[423693442,1780314644000,-894.19061325,0.00019102,2]
[423693441,1780314644000,-862.28603014,0.00019047,2]
[423693450,1780314644000,-1481.2378076,0.00019265,2]
[423693447,1780314644000,-150.0,0.00019258,2]
[423693448,1780314644000,-150.0,0.00019258,2]
[423693520,1780314645000,-10652.17309792,0.00020361,2]
[423693522,1780314645000,-2319.72410669,0.00020361,2]
[423693524,1780314645000,-1346.3,0.00020381,2]
[423693519,1780314645000,-18500.3430377,0.00020355,2]
[423693514,1780314645000,-6014.0259827,0.0002022,2]
[423693515,1780314645000,-150.0,0.00020226,4]
[423693518,1780314645000,-150.0,0.00020327,4]
[423693521,1780314645000,-1592.87721992,0.00020361,2]
[423693516,1780314645000,-150.0,0.00020276,4]
[423693517,1780314645000,-150.0,0.00020327,4]
[423693525,1780314645000,-270.13475721,0.000204,2]
[423693528,1780314645000,-150.0,0.00020429,4]
[423693541,1780314645000,-270.13475721,0.000206,2]
[423693535,1780314645000,-763.72277884,0.00020527,2]
[423693537,1780314645000,-150.0,0.00020531,4]
[423693539,1780314645000,-150.0,0.00020582,4]
[423693533,1780314645000,-381.61038393,0.00020514,2]
[423693549,1780314645000,-150.0,0.00020735,4]
[423693543,1780314645000,-150.0,0.00020633,4]
[423693546,1780314645000,-150.0,0.00020684,4]
[423693548,1780314645000,-2688.60698181,0.000207,2]
[423693550,1780314645000,-1610.0,0.00020771,2]
[423693551,1780314645000,-190.02857262,0.00020785,2]
[423693555,1780314645000,-211.41262247,0.000208,2]
[423693523,1780314645000,-150.0,0.00020378,4]
[423693531,1780314645000,-150.0,0.0002048,4]
[423693511,1780314645000,-600.0,0.0002022,5]
[423693493,1780314645000,-533.0,0.0002,2]
[423693508,1780314645000,-270.13475721,0.000202,2]
[423693553,1780314645000,-270.13475721,0.000208,2]
[423693486,1780314645000,-736.0,0.0002,2]
[423693484,1780314645000,-270.13475721,0.0002,2]
[423693488,1780314645000,-1828.0,0.0002,2]
[423693485,1780314645000,-598.0,0.0002,2]
[423693487,1780314645000,-893.0,0.0002,2]
[423693490,1780314645000,-400.0,0.0002,2]
[423693500,1780314645000,-1059.0,0.0002,2]
[423693489,1780314645000,-1755.0,0.0002,2]
[423693491,1780314645000,-421.0,0.0002,2]
[423693492,1780314645000,-2972.0,0.0002,2]
[423693494,1780314645000,-371.0,0.0002,2]
[423693510,1780314645000,-1500.0,0.0002022,2]
[423693496,1780314645000,-656.0,0.0002,2]
[423693498,1780314645000,-706.0,0.0002,2]
[423693497,1780314645000,-1197.0,0.0002,2]
[423693495,1780314645000,-1681.0,0.0002,2]
[423693501,1780314645000,-5377.2,0.0002,2]
[423693502,1780314645000,-831.0,0.0002,2]
[423693512,1780314645000,-250.0,0.0002022,2]
[423693504,1780314645000,-150.0,0.00020073,4]
[423693506,1780314645000,-150.0,0.00020124,4]
[423693505,1780314645000,-300.0,0.000201,10]
[423693513,1780314645000,-1023542.4073919,0.0002022,2]
[423693507,1780314645000,-150.0,0.00020175,4]
[423693509,1780314645000,-300.0,0.00020219,2]
[423693499,1780314645000,-200.0,0.0002,10]
[423693554,1780314645000,-211.41262247,0.000208,2]
[423693503,1780314645000,-150.0,0.00020022,4]
[423693556,1780314645000,-150.0,0.00020837,4]
[423693595,1780314645000,-741.83,0.00021273,2]
[423693597,1780314645000,-1357.0,0.0002128,2]
[423693588,1780314645000,-150.0,0.00021092,4]
[423693590,1780314645000,-4299.20821915,0.00021168,2]
[423693592,1780314645000,-718.26,0.000212,7]
[423693591,1780314645000,-150.0,0.00021193,4]
[423693613,1780314645000,-1712.93078311,0.00021457,2]
[423693593,1780314645000,-150.0,0.00021244,4]
[423693586,1780314645000,-3439.0,0.00021,2]
[423693589,1780314645000,-150.0,0.00021143,4]
[423693587,1780314645000,-150.0,0.00021041,4]
[423693605,1780314645000,-150.0,0.00021346,4]
[423693596,1780314645000,-3551.0,0.0002128,2]
[423693604,1780314645000,-150.0,0.00021295,4]
[423693607,1780314645000,-210.33589891,0.00021397,4]
[423693603,1780314645000,-932.0,0.0002128,2]
[423693599,1780314645000,-525.0,0.0002128,2]
[423693602,1780314645000,-418.0,0.0002128,2]
[423693600,1780314645000,-1273.0,0.0002128,2]
[423693608,1780314645000,-150.00000013,0.00021397,4]
[423693606,1780314645000,-451.0,0.00021378,2]
[423693610,1780314645000,-203664.2510642,0.00021408,2]
[423693609,1780314645000,-151.0,0.00021405,2]
[423693612,1780314645000,-571.27323327,0.00021456,2]
[423693611,1780314645000,-599.60298507,0.00021456,2]
[423693560,1780314645000,-1651.81367706,0.00020909,2]
[423693601,1780314645000,-150.0,0.0002128,2]
[423693594,1780314645000,-16865.34,0.00021273,2]
[423693598,1780314645000,-929.0,0.0002128,2]
[423693581,1780314645000,-371.0,0.00021,2]
[423693583,1780314645000,-656.0,0.00021,2]
[423693557,1780314645000,-451.0,0.00020856,2]
[423693559,1780314645000,-10606.76787305,0.00020909,2]
[423693552,1780314645000,-150.0,0.00020786,4]
[423693558,1780314645000,-150.0,0.00020888,4]
[423693563,1780314645000,-150.0,0.0002099,4]
[423693568,1780314645000,-15000.0,0.00021,2]
[423693573,1780314645000,-13479.9205152,0.00021,2]
[423693562,1780314645000,-150.0,0.00020939,4]
[423693574,1780314645000,-736.0,0.00021,2]
[423693567,1780314645000,-6111.0,0.00021,2]
[423693565,1780314645000,-6111.0,0.00021,2]
[423693564,1780314645000,-15000.0,0.00021,2]
[423693566,1780314645000,-15000.0,0.00021,2]
[423693561,1780314645000,-2405.55389863,0.00020909,2]
[423693579,1780314645000,-2972.0,0.00021,2]
[423693570,1780314645000,-15000.0,0.00021,2]
[423693571,1780314645000,-4326.14917897,0.00021,2]
[423693572,1780314645000,-3416.64330529,0.00021,7]
[423693575,1780314645000,-893.0,0.00021,2]
[423693580,1780314645000,-533.0,0.00021,2]
[423693585,1780314645000,-706.0,0.00021,2]
[423693578,1780314645000,-421.0,0.00021,2]
[423693576,1780314645000,-1828.0,0.00021,2]
[423693569,1780314645000,-2307.2975711,0.00021,2]
[423693577,1780314645000,-1755.0,0.00021,2]
[423693582,1780314645000,-1681.0,0.00021,2]
[423693584,1780314645000,-1197.0,0.00021,2]
[423693654,1780314646000,-10275.72267183,0.000225,2]
[423693649,1780314646000,-1346.3,0.00022353,2]
[423693639,1780314646000,-1681.0,0.00022,2]
[423693653,1780314646000,-1663.93,0.00022466,2]
[423693657,1780314646000,-1230.64,0.00022691,2]
[423693651,1780314646000,-1814.02,0.00022466,2]
[423693640,1780314646000,-656.0,0.00022,2]
[423693650,1780314646000,-808.11467,0.00022415,2]
[423693652,1780314646000,-2143.47,0.00022466,2]
[423693648,1780314646000,-308.24,0.000222,2]
[423693646,1780314646000,-528.18666344,0.000221,7]
[423693656,1780314646000,-1638.73,0.00022691,2]
[423693647,1780314646000,-200.0,0.00022198,2]
[423693655,1780314646000,-2682.57183977,0.00022553,2]
[423693663,1780314646000,-355.08884253,0.00023,2]
[423693658,1780314646000,-16865.34,0.00022691,2]
[423693667,1780314646000,-893.0,0.00023,2]
[423693661,1780314646000,-200.0,0.00022987,2]
[423693671,1780314646000,-1755.0,0.00023,2]
[423693660,1780314646000,-161.92929393,0.00022764,2]
[423693669,1780314646000,-1828.0,0.00023,2]
[423693665,1780314646000,-736.0,0.00023,2]
[423693676,1780314646000,-2972.0,0.00023,2]
[423693673,1780314646000,-421.0,0.00023,2]
[423693678,1780314646000,-230.72,0.00023,30]
[423693680,1780314646000,-371.0,0.00023,2]
[423693690,1780314646000,-179.48048212,0.00023199,2]
[423693659,1780314646000,-741.83,0.00022691,2]
[423693638,1780314646000,-371.0,0.00022,2]
[423693620,1780314646000,-255.46502907,0.00021651,2]
[423693644,1780314646000,-1537.66541106,0.00022004,2]
[423693691,1780314646000,-290.3196055,0.000232,2]
[423693616,1780314646000,-150.81425056,0.000215,21]
[423693619,1780314646000,-12222.7125616,0.00021651,2]
[423693615,1780314646000,-18291.00150325,0.000215,2]
[423693618,1780314646000,-1610.0,0.00021593,2]
[423693614,1780314646000,-2494.55939288,0.00021457,2]
[423693617,1780314646000,-150.81425056,0.000215,21]
[423693621,1780314646000,-5377.2,0.00021766,2]
[423693624,1780314646000,-5000.0,0.00021918,2]
[423693626,1780314646000,-207.33407554,0.00022,3]
[423693623,1780314646000,-451.01823754,0.00021899,2]
[423693625,1780314646000,-175.94193982,0.00021918,2]
[423693622,1780314646000,-507.40807909,0.00021774,7]
[423693627,1780314646000,-15963.62593895,0.00022,4]
[423693631,1780314646000,-1828.0,0.00022,2]
[423693629,1780314646000,-736.0,0.00022,2]
[423693628,1780314646000,-815.21277686,0.00022,7]
[423693630,1780314646000,-893.0,0.00022,2]
[423693632,1780314646000,-1755.0,0.00022,2]
[423693634,1780314646000,-421.0,0.00022,2]
[423693633,1780314646000,-450.0,0.00022,2]
[423693642,1780314646000,-706.0,0.00022,2]
[423693643,1780314646000,-867.64,0.00022,2]
[423693635,1780314646000,-2972.0,0.00022,2]
[423693645,1780314646000,-2586.85809042,0.00022004,2]
[423693637,1780314646000,-533.0,0.00022,2]
[423693636,1780314646000,-190.89,0.00022,30]
[423693641,1780314646000,-1197.0,0.00022,2]
[423693679,1780314646000,-533.0,0.00023,2]
[423693682,1780314646000,-656.0,0.00023,2]
[423693743,1780314646000,-747.1605181,0.00025,2]
[423693717,1780314646000,-1230.09181537,0.00024,7]
[423693728,1780314646000,-1273.0,0.0002428,2]
[423693720,1780314646000,-391.02372184,0.00024195,2]
[423693718,1780314646000,-209.21103511,0.00024,7]
[423693719,1780314646000,-211.86343503,0.00024188,2]
[423693729,1780314646000,-418.0,0.0002428,2]
[423693721,1780314646000,-2991.49051684,0.00024197,2]
[423693726,1780314646000,-929.0,0.0002428,2]
[423693724,1780314646000,-3551.0,0.0002428,2]
[423693723,1780314646000,-3761.85599519,0.0002421,2]
[423693725,1780314646000,-1357.0,0.0002428,2]
[423693727,1780314646000,-525.0,0.0002428,2]
[423693730,1780314646000,-932.0,0.0002428,2]
[423693731,1780314646000,-1346.3,0.00024324,2]
[423693732,1780314646000,-200.0,0.00024564,2]
[423693740,1780314646000,-247.3400765,0.00024999,2]
[423693733,1780314646000,-434.91,0.00024658,2]
[423693737,1780314646000,-867.64,0.00024905,7]
[423693736,1780314646000,-5000.0,0.00024735,2]
[423693735,1780314646000,-559.02971451,0.00024725,2]
[423693734,1780314646000,-1000.0,0.00024658,2]
[423693738,1780314646000,-150.0,0.00024988,22]
[423693739,1780314646000,-247.3400765,0.00024999,2]
[423693741,1780314646000,-313.60822115,0.00025,2]
[423693681,1780314646000,-1681.0,0.00023,2]
[423693742,1780314646000,-315528.33295117,0.00025,2]
[423693744,1780314646000,-893.8330122,0.00025,2]
[423693711,1780314646000,-533.0,0.00024,2]
[423693713,1780314646000,-1681.0,0.00024,2]
[423693722,1780314646000,-891.02,0.000242,7]
[423693709,1780314646000,-421.0,0.00024,2]
[423693684,1780314646000,-706.0,0.00023,2]
[423693712,1780314646000,-371.0,0.00024,2]
[423693683,1780314646000,-1197.0,0.00023,2]
[423693687,1780314646000,-215.65015035,0.00023,7]
[423693688,1780314646000,-2781.82699784,0.00023101,2]
[423693686,1780314646000,-209.21103511,0.00023,3]
[423693685,1780314646000,-533.02236066,0.00023,3]
[423693692,1780314646000,-152.48624564,0.00023219,27]
[423693695,1780314646000,-1173.53545887,0.000235,2]
[423693694,1780314646000,-173.39,0.00023425,2]
[423693697,1780314646000,-2884.75459676,0.00023648,2]
[423693700,1780314646000,-200.0,0.00023775,2]
[423693701,1780314646000,-1039.53405848,0.00024,2]
[423693696,1780314646000,-5377.2,0.00023532,2]
[423693689,1780314646000,-488.0,0.00023175,7]
[423693693,1780314646000,-182.73,0.00023321,2]
[423693698,1780314646000,-4299.20821915,0.000237,2]
[423693707,1780314646000,-1755.0,0.00024,2]
[423693710,1780314646000,-2972.0,0.00024,2]
[423693705,1780314646000,-893.0,0.00024,2]
[423693715,1780314646000,-1197.0,0.00024,2]
[423693714,1780314646000,-656.0,0.00024,2]
[423693708,1780314646000,-500.0,0.00024,2]
[423693706,1780314646000,-1828.0,0.00024,2]
[423693699,1780314646000,-200.0,0.00023723,2]
[423693702,1780314646000,-3600.0,0.00024,2]
[423693704,1780314646000,-736.0,0.00024,2]
[423693703,1780314646000,-1256.97154961,0.00024,2]
[423693716,1780314646000,-706.0,0.00024,2]
[423693782,1780314647000,-500.0,0.00025667,2]
[423693783,1780314647000,-500.0,0.00025667,2]
[423693781,1780314647000,-500.0,0.00025667,2]
[423693784,1780314647000,-500.0,0.00025667,2]
[423693777,1780314647000,-500.0,0.00025667,2]
[423693780,1780314647000,-500.0,0.00025667,2]
[423693778,1780314647000,-500.0,0.00025667,2]
[423693776,1780314647000,-500.0,0.00025667,2]
[423693775,1780314647000,-500.0,0.00025667,2]
[423693785,1780314647000,-500.0,0.00025667,2]
[423693779,1780314647000,-500.0,0.00025667,2]
[423693786,1780314647000,-500.0,0.00025667,2]
[423693794,1780314647000,-314.99174282,0.00025785,10]
[423693789,1780314647000,-500.0,0.00025667,2]
[423693795,1780314647000,-1355.0,0.000258,3]
[423693792,1780314647000,-500.0,0.00025667,2]
[423693790,1780314647000,-500.0,0.00025667,2]
[423693788,1780314647000,-500.0,0.00025667,2]
[423693793,1780314647000,-300.0,0.00025785,10]
[423693791,1780314647000,-500.0,0.00025667,2]
[423693796,1780314647000,-500.0,0.00025808,2]
[423693797,1780314647000,-891.02,0.000259,7]
[423693798,1780314647000,-550.0,0.00026,2]
[423693801,1780314647000,-151.0,0.00026333,2]
[423693766,1780314647000,-151.0,0.00025664,7]
[423693787,1780314647000,-500.0,0.00025667,2]
[423693767,1780314647000,-300.0,0.00025666,10]
[423693800,1780314647000,-1346.3,0.00026296,2]
[423693770,1780314647000,-151.0,0.00025667,2]
[423693745,1780314647000,-1845.35216406,0.00025,2]
[423693746,1780314647000,-1764.1352666,0.00025,2]
[423693747,1780314647000,-431.63813091,0.00025,2]
[423693749,1780314647000,-547.08824232,0.00025,2]
[423693750,1780314647000,-383.45074324,0.00025,2]
[423693748,1780314647000,-2986.0,0.00025,2]
[423693751,1780314647000,-1689.30352785,0.00025,2]
[423693752,1780314647000,-663.72412372,0.00025,2]
[423693755,1780314647000,-150.8594102,0.00025195,2]
[423693754,1780314647000,-713.53095286,0.00025,2]
[423693753,1780314647000,-1211.78091631,0.00025,2]
[423693756,1780314647000,-150.8594102,0.00025195,2]
[423693768,1780314647000,-300.0,0.00025666,10]
[423693761,1780314647000,-500.0,0.00025198,30]
[423693760,1780314647000,-500.0,0.00025198,30]
[423693758,1780314647000,-171.90449857,0.00025195,2]
[423693762,1780314647000,-834.0,0.00025198,30]
[423693759,1780314647000,-500.0,0.00025198,30]
[423693773,1780314647000,-500.0,0.00025667,2]
[423693771,1780314647000,-500.0,0.00025667,2]
[423693774,1780314647000,-500.0,0.00025667,2]
[423693764,1780314647000,-200.0,0.00025353,2]
[423693763,1780314647000,-5377.2,0.00025299,7]
[423693772,1780314647000,-500.0,0.00025667,2]
[423693769,1780314647000,-300.0,0.00025666,10]
[423693765,1780314647000,-432.38936914,0.00025397,2]
[423693757,1780314647000,-429.76124644,0.00025195,2]
[423693799,1780314647000,-200.0,0.00026141,2]
[423693802,1780314647000,-151.0,0.00026333,2]
[423693806,1780314647000,-650.148347,0.00026333,2]
[423693838,1780314647000,-5377.2,0.00027065,7]
[423693839,1780314647000,-2000.0,0.000271,2]
[423693836,1780314647000,-199.43,0.00027,14]
[423693837,1780314647000,-1109.60011597,0.00027055,2]
[423693845,1780314647000,-1273.0,0.0002728,2]
[423693841,1780314647000,-3551.0,0.0002728,2]
[423693835,1780314647000,-300.0,0.00026989,10]
[423693843,1780314647000,-929.0,0.0002728,2]
[423693840,1780314647000,-168.84046023,0.0002728,2]
[423693844,1780314647000,-525.0,0.0002728,2]
[423693842,1780314647000,-1357.0,0.0002728,2]
[423693848,1780314647000,-150.0,0.00027284,2]
[423693834,1780314647000,-10262.09196246,0.00026983,2]
[423693847,1780314647000,-280.0,0.00027284,2]
[423693857,1780314647000,-434.91,0.00027397,2]
[423693849,1780314647000,-220.0,0.00027284,2]
[423693858,1780314647000,-300.0,0.00027397,2]
[423693853,1780314647000,-189.45774317,0.00027397,2]
[423693850,1780314647000,-158.95,0.0002739,30]
[423693854,1780314647000,-264.25,0.00027397,30]
[423693855,1780314647000,-1500.0,0.00027397,2]
[423693851,1780314647000,-300.0,0.00027396,10]
[423693852,1780314647000,-288.25957943,0.00027397,7]
[423693859,1780314647000,-170.707664,0.00027397,2]
[423693860,1780314647000,-170.707664,0.00027397,2]
[423693861,1780314647000,-170.707664,0.00027397,2]
[423693856,1780314647000,-1179.29,0.00027397,2]